[Event "Titled Tuesday Blitz July 4 Late 2023"]
[White "Rostomyan, Mikayel"]
[Black "ElDivis"]
[WhiteFideId "13313754"]
[WhiteElo "2633"]
[BlackElo "2532"]
[Result "1/2-1/2"]
[Round "5"]
[TimeControl "180+2"]
[Date "2023.07.04"]
[WhiteClock "0:00:08"]
[BlackClock "0:00:09"]
[Board "60"]

1. d4 {[%clk 0:03:00]}  Nf6 {[%clk 0:02:58]} 2. Nf3 {[%clk 0:02:59]}  g6 {[%clk 0:02:58]} 3. c4 {[%clk 0:02:57]}  Bg7 {[%clk 0:02:57]} 4. g3 {[%clk 0:02:58]}  c5 {[%clk 0:02:56]} 5. Bg2 {[%clk 0:02:52]}  Qa5+ {[%clk 0:02:52]} 6. Bd2 {[%clk 0:02:49]}  Qb6 {[%clk 0:02:24]} 7. dxc5 {[%clk 0:02:48]}  Qxc5 {[%clk 0:02:17]} 8. Qc2 {[%clk 0:02:39]}  d5 {[%clk 0:02:04]} 9. O-O {[%clk 0:02:23]}  dxc4 {[%clk 0:01:50]} 10. Rc1 {[%clk 0:02:19]}  Nc6 {[%clk 0:01:38]} 11. Qxc4 {[%clk 0:02:18]}  Qxc4 {[%clk 0:01:39]} 12. Rxc4 {[%clk 0:02:18]}  Be6 {[%clk 0:01:36]} 13. Rc1 {[%clk 0:02:18]}  Ne4 {[%clk 0:01:34]} 14. Bc3 {[%clk 0:02:11]}  Nxc3 {[%clk 0:01:34]} 15. Nxc3 {[%clk 0:02:12]}  O-O {[%clk 0:01:30]} 16. Na4 {[%clk 0:02:06]}  Rad8 {[%clk 0:01:20]} 17. e3 {[%clk 0:01:48]}  Bd5 {[%clk 0:01:16]} 18. Rc5 {[%clk 0:01:36]}  b6 {[%clk 0:01:05]} 19. Rxd5 {[%clk 0:01:23]}  Rxd5 {[%clk 0:01:05]} 20. Nd4 {[%clk 0:01:23]}  Rxd4 {[%clk 0:00:59]} 21. exd4 {[%clk 0:01:23]}  Nxd4 {[%clk 0:01:00]} 22. Rd1 {[%clk 0:01:22]}  Rd8 {[%clk 0:00:53]} 23. Kf1 {[%clk 0:01:23]}  e6 {[%clk 0:00:44]} 24. Nc3 {[%clk 0:01:22]}  Bf6 {[%clk 0:00:39]} 25. Ne4 {[%clk 0:01:19]}  Be7 {[%clk 0:00:39]} 26. Rc1 {[%clk 0:01:13]}  f5 {[%clk 0:00:32]} 27. Rc7 {[%clk 0:01:08]}  Kf8 {[%clk 0:00:26]} 28. Nc3 {[%clk 0:01:03]}  a5 {[%clk 0:00:26]} 29. h4 {[%clk 0:01:00]}  Ke8 {[%clk 0:00:22]} 30. Bc6+ {[%clk 0:00:54]}  Nxc6 {[%clk 0:00:22]} 31. Rxc6 {[%clk 0:00:55]}  Rd6 {[%clk 0:00:18]} 32. Rc7 {[%clk 0:00:52]}  Rd7 {[%clk 0:00:18]} 33. Rc8+ {[%clk 0:00:52]}  Rd8 {[%clk 0:00:18]} 34. Rc6 {[%clk 0:00:52]}  Rd6 {[%clk 0:00:18]} 35. Rc4 {[%clk 0:00:52]}  Bf6 {[%clk 0:00:17]} 36. Nb5 {[%clk 0:00:42]}  Rd2 {[%clk 0:00:13]} 37. Rc6 {[%clk 0:00:42]}  Kf7 {[%clk 0:00:11]} 38. Rxb6 {[%clk 0:00:37]}  Rxb2 {[%clk 0:00:09]} 39. a4 {[%clk 0:00:33]}  Rb4 {[%clk 0:00:09]} 40. Rb7+ {[%clk 0:00:21]}  Kg8 {[%clk 0:00:09]} 41. Ra7 {[%clk 0:00:16]}  Rxa4 {[%clk 0:00:09]} 42. Nc7 {[%clk 0:00:16]}  Ra1+ {[%clk 0:00:07]} 43. Kg2 {[%clk 0:00:16]}  a4 {[%clk 0:00:07]} 44. Nxe6 {[%clk 0:00:15]}  a3 {[%clk 0:00:07]} 45. Nf4 {[%clk 0:00:11]}  a2 {[%clk 0:00:06]} 46. Nd5 {[%clk 0:00:11]}  Bd4 {[%clk 0:00:07]} 47. Nf4 {[%clk 0:00:11]}  Kf8 {[%clk 0:00:06]} 48. Ne6+ {[%clk 0:00:11]}  Ke8 {[%clk 0:00:06]} 49. Nxd4 {[%clk 0:00:11]}  Rd1 {[%clk 0:00:06]} 50. Nb3 {[%clk 0:00:12]}  Rb1 {[%clk 0:00:06]} 51. Ra8+ {[%clk 0:00:11]}  Kf7 {[%clk 0:00:06]} 52. Ra7+ {[%clk 0:00:06]}  Kg8 {[%clk 0:00:06]} 53. Ra8+ {[%clk 0:00:07]}  Kg7 {[%clk 0:00:05]} 54. Ra7+ {[%clk 0:00:07]}  Kg8 {[%clk 0:00:05]} 55. Ra8+ {[%clk 0:00:07]}  Kf7 {[%clk 0:00:05]} 56. Rxa2 {[%clk 0:00:07]}  Rxb3 {[%clk 0:00:05]} 57. Ra7+ {[%clk 0:00:08]}  Kg8 {[%clk 0:00:05]} 58. Rc7 {[%clk 0:00:09]}  Rd3 {[%clk 0:00:05]} 59. Re7 {[%clk 0:00:09]}  Rd8 {[%clk 0:00:05]} 60. Kf3 {[%clk 0:00:09]}  Rf8 {[%clk 0:00:05]} 61. Kf4 {[%clk 0:00:10]}  Rf7 {[%clk 0:00:06]} 62. Rxf7 {[%clk 0:00:06]}  Kxf7 {[%clk 0:00:07]} 63. Ke5 {[%clk 0:00:06]}  Ke7 {[%clk 0:00:07]} 64. f3 {[%clk 0:00:07]}  Kf7 {[%clk 0:00:07]} 65. Kd6 {[%clk 0:00:03]}  Kf6 {[%clk 0:00:07]} 66. g4 {[%clk 0:00:03]}  fxg4 {[%clk 0:00:07]} 67. fxg4 {[%clk 0:00:04]}  h6 {[%clk 0:00:06]} 68. Kd5 {[%clk 0:00:04]}  h5 {[%clk 0:00:04]} 69. g5+ {[%clk 0:00:03]}  Kf5 {[%clk 0:00:05]} 70. Kd6 {[%clk 0:00:04]}  Kg4 {[%clk 0:00:05]} 71. Ke6 {[%clk 0:00:05]}  Kxh4 {[%clk 0:00:06]} 72. Kf6 {[%clk 0:00:06]}  Kg3 {[%clk 0:00:06]} 73. Kxg6 {[%clk 0:00:07]}  h4 {[%clk 0:00:07]} 74. Kf6 {[%clk 0:00:07]}  h3 {[%clk 0:00:07]} 75. g6 {[%clk 0:00:07]}  h2 {[%clk 0:00:08]} 76. g7 {[%clk 0:00:08]}  h1=Q {[%clk 0:00:08]} 77. g8=Q+ {[%clk 0:00:09]}  Kf2 {[%clk 0:00:08]} 78. Qa2+ {[%clk 0:00:09]}  Kg1 {[%clk 0:00:09]} 79. Kg5 {[%clk 0:00:08]}  Qg2+ {[%clk 0:00:08]} 80. Qxg2+ {[%clk 0:00:08]}  Kxg2 {[%clk 0:00:09]} 1/2-1/2


[Site "https://www.chess.com"]

[Event "Titled Tuesday Blitz July 4 Late 2023"]
[White "Di Berardino, Diego Rafael"]
[Black "Belov, Alexei"]
[WhiteFideId "2105446"]
[BlackFideId "4128206"]
[WhiteElo "2624"]
[BlackElo "2524"]
[Result "0-1"]
[Round "5"]
[TimeControl "180+2"]
[Date "2023.07.04"]
[WhiteClock "0:00:00"]
[BlackClock "0:01:02"]
[Board "61"]

1. d4 {[%clk 0:03:00]}  e6 {[%clk 0:02:59]} 2. c4 {[%clk 0:02:57]}  d5 {[%clk 0:03:00]} 3. Nc3 {[%clk 0:02:56]}  Be7 {[%clk 0:03:00]} 4. Nf3 {[%clk 0:02:47]}  Nf6 {[%clk 0:03:00]} 5. Bg5 {[%clk 0:02:46]}  Nbd7 {[%clk 0:02:59]} 6. e3 {[%clk 0:02:42]}  O-O {[%clk 0:02:59]} 7. Bd3 {[%clk 0:02:39]}  dxc4 {[%clk 0:02:59]} 8. Bxc4 {[%clk 0:02:39]}  a6 {[%clk 0:02:59]} 9. O-O {[%clk 0:02:36]}  b5 {[%clk 0:02:59]} 10. Bd3 {[%clk 0:02:31]}  Bb7 {[%clk 0:02:58]} 11. Rc1 {[%clk 0:02:11]}  Rc8 {[%clk 0:02:55]} 12. Qe2 {[%clk 0:02:09]}  c5 {[%clk 0:02:55]} 13. Rfd1 {[%clk 0:02:02]}  cxd4 {[%clk 0:02:40]} 14. exd4 {[%clk 0:01:59]}  b4 {[%clk 0:02:39]} 15. Na4 {[%clk 0:01:53]}  Qa5 {[%clk 0:02:38]} 16. Bxf6 {[%clk 0:01:10]}  Nxf6 {[%clk 0:02:38]} 17. b3 {[%clk 0:01:10]}  Nd5 {[%clk 0:02:31]} 18. Qe4 {[%clk 0:01:00]}  g6 {[%clk 0:02:29]} 19. Ne5 {[%clk 0:00:58]}  Rc7 {[%clk 0:02:18]} 20. Qg4 {[%clk 0:00:51]}  Nf6 {[%clk 0:02:09]} 21. Qf4 {[%clk 0:00:45]}  Rxc1 {[%clk 0:01:58]} 22. Rxc1 {[%clk 0:00:44]}  Rd8 {[%clk 0:01:53]} 23. Nc5 {[%clk 0:00:27]}  Qb6 {[%clk 0:01:39]} 24. h4 {[%clk 0:00:09]}  Ba8 {[%clk 0:01:25]} 25. h5 {[%clk 0:00:09]}  Qd6 {[%clk 0:01:14]} 26. hxg6 {[%clk 0:00:09]}  hxg6 {[%clk 0:01:13]} 27. Qg3 {[%clk 0:00:06]}  Nh5 {[%clk 0:01:06]} 28. Qg4 {[%clk 0:00:02]}  Qxd4 {[%clk 0:01:02]} 29. Qxd4 {[%clk 0:00:00]}  Rxd4 {[%clk 0:01:02]} 0-1


[Site "https://www.chess.com"]

[Event "Titled Tuesday Blitz July 4 Late 2023"]
[White "Luong Phuong Hanh"]
[Black "Sun, Rick"]
[WhiteFideId "12401013"]
[BlackFideId "30909481"]
[WhiteElo "2471"]
[BlackElo "2610"]
[Result "1-0"]
[Round "5"]
[TimeControl "180+2"]
[Date "2023.07.04"]
[WhiteClock "0:00:16"]
[BlackClock "0:00:09"]
[Board "63"]

1. d4 {[%clk 0:03:00]}  d6 {[%clk 0:03:00]} 2. Nf3 {[%clk 0:02:58]}  Nf6 {[%clk 0:03:01]} 3. g3 {[%clk 0:02:57]}  g6 {[%clk 0:03:01]} 4. Bg2 {[%clk 0:02:58]}  Bg7 {[%clk 0:03:02]} 5. O-O {[%clk 0:02:58]}  O-O {[%clk 0:03:02]} 6. a4 {[%clk 0:02:58]}  Nbd7 {[%clk 0:02:59]} 7. Nc3 {[%clk 0:02:55]}  c5 {[%clk 0:02:57]} 8. e4 {[%clk 0:02:53]}  a6 {[%clk 0:02:52]} 9. Re1 {[%clk 0:02:52]}  cxd4 {[%clk 0:02:50]} 10. Nxd4 {[%clk 0:02:52]}  Rb8 {[%clk 0:02:44]} 11. h3 {[%clk 0:02:49]}  Nc5 {[%clk 0:02:43]} 12. Be3 {[%clk 0:02:49]}  Bd7 {[%clk 0:02:33]} 13. Qe2 {[%clk 0:02:39]}  Qa5 {[%clk 0:01:57]} 14. Kh2 {[%clk 0:02:28]}  Rfc8 {[%clk 0:01:55]} 15. f4 {[%clk 0:02:17]}  Ne6 {[%clk 0:01:29]} 16. Nb3 {[%clk 0:02:08]}  Qh5 {[%clk 0:00:38]} 17. Bf3 {[%clk 0:02:05]}  Qh6 {[%clk 0:00:35]} 18. f5 {[%clk 0:02:01]}  g5 {[%clk 0:00:15]} 19. fxe6 {[%clk 0:01:53]}  Bxe6 {[%clk 0:00:16]} 20. h4 {[%clk 0:01:45]}  Qg6 {[%clk 0:00:05]} 21. Bxg5 {[%clk 0:01:44]}  h6 {[%clk 0:00:03]} 22. Bxf6 {[%clk 0:01:43]}  Bxf6 {[%clk 0:00:04]} 23. Bh5 {[%clk 0:01:39]}  Qg7 {[%clk 0:00:04]} 24. Rg1 {[%clk 0:01:21]}  Be5 {[%clk 0:00:04]} 25. Raf1 {[%clk 0:01:14]}  Rc4 {[%clk 0:00:03]} 26. Nd5 {[%clk 0:01:10]}  Bxd5 {[%clk 0:00:01]} 27. Nd2 {[%clk 0:00:46]}  Rd4 {[%clk 0:00:02]} 28. c3 {[%clk 0:00:44]}  Rxd2 {[%clk 0:00:02]} 29. Qxd2 {[%clk 0:00:43]}  Bxe4 {[%clk 0:00:02]} 30. Rxf7 {[%clk 0:00:38]}  Qxf7 {[%clk 0:00:02]} 31. Bxf7+ {[%clk 0:00:38]}  Kxf7 {[%clk 0:00:03]} 32. Qxh6 {[%clk 0:00:33]}  Bf6 {[%clk 0:00:03]} 33. Qf4 {[%clk 0:00:31]}  Rh8 {[%clk 0:00:03]} 34. Qxe4 {[%clk 0:00:31]}  d5 {[%clk 0:00:04]} 35. Qxd5+ {[%clk 0:00:31]}  Kg7 {[%clk 0:00:04]} 36. Rf1 {[%clk 0:00:25]}  Rh6 {[%clk 0:00:04]} 37. Qxb7 {[%clk 0:00:22]}  Rh5 {[%clk 0:00:04]} 38. Rxf6 {[%clk 0:00:21]}  Kxf6 {[%clk 0:00:04]} 39. Qf3+ {[%clk 0:00:22]}  Kg7 {[%clk 0:00:05]} 40. Qxh5 {[%clk 0:00:22]}  e5 {[%clk 0:00:06]} 41. Qxe5+ {[%clk 0:00:22]}  Kg6 {[%clk 0:00:05]} 42. h5+ {[%clk 0:00:22]}  Kh6 {[%clk 0:00:06]} 43. g4 {[%clk 0:00:19]}  a5 {[%clk 0:00:07]} 44. Kh3 {[%clk 0:00:18]}  Kh7 {[%clk 0:00:08]} 45. Kh4 {[%clk 0:00:18]}  Kg8 {[%clk 0:00:09]} 46. Qe7 {[%clk 0:00:15]}  Kh8 {[%clk 0:00:09]} 47. h6 {[%clk 0:00:16]}  Kg8 {[%clk 0:00:09]} 48. Qg7# {[%clk 0:00:16]} 1-0


[Site "https://www.chess.com"]

[Event "Titled Tuesday Blitz July 4 Late 2023"]
[White "Erenberg, Ariel"]
[Black "Erzhanov, Arman"]
[WhiteFideId "2811634"]
[BlackFideId "4138821"]
[WhiteElo "2722"]
[BlackElo "2482"]
[Result "1-0"]
[Round "5"]
[TimeControl "180+2"]
[Date "2023.07.04"]
[WhiteClock "0:00:17"]
[BlackClock "0:00:01"]
[Board "68"]

1. d4 {[%clk 0:02:58]}  d6 {[%clk 0:02:59]} 2. c4 {[%clk 0:02:57]}  e5 {[%clk 0:02:59]} 3. Nf3 {[%clk 0:02:57]}  e4 {[%clk 0:02:59]} 4. Ng5 {[%clk 0:02:58]}  f5 {[%clk 0:03:00]} 5. Nc3 {[%clk 0:02:58]}  Be7 {[%clk 0:03:01]} 6. h4 {[%clk 0:02:58]}  Nf6 {[%clk 0:03:02]} 7. e3 {[%clk 0:02:56]}  O-O {[%clk 0:03:02]} 8. Be2 {[%clk 0:02:56]}  c6 {[%clk 0:03:02]} 9. b4 {[%clk 0:02:55]}  Na6 {[%clk 0:03:01]} 10. Qb3 {[%clk 0:02:54]}  Nc7 {[%clk 0:03:00]} 11. Bb2 {[%clk 0:02:52]}  Kh8 {[%clk 0:02:57]} 12. b5 {[%clk 0:02:52]}  d5 {[%clk 0:02:45]} 13. a4 {[%clk 0:02:50]}  Ne6 {[%clk 0:02:24]} 14. bxc6 {[%clk 0:02:39]}  bxc6 {[%clk 0:02:23]} 15. cxd5 {[%clk 0:02:39]}  cxd5 {[%clk 0:02:22]} 16. Ba3 {[%clk 0:02:31]}  Bxa3 {[%clk 0:02:16]} 17. Rxa3 {[%clk 0:02:27]}  f4 {[%clk 0:01:52]} 18. Nxe6 {[%clk 0:02:09]}  Bxe6 {[%clk 0:01:53]} 19. exf4 {[%clk 0:02:09]}  Rb8 {[%clk 0:01:53]} 20. Qd1 {[%clk 0:02:05]}  Qa5 {[%clk 0:01:50]} 21. O-O {[%clk 0:02:03]}  Rfc8 {[%clk 0:01:47]} 22. Qd2 {[%clk 0:01:41]}  Qb4 {[%clk 0:01:23]} 23. Rfa1 {[%clk 0:01:37]}  Rc6 {[%clk 0:00:46]} 24. g3 {[%clk 0:01:25]}  Qd6 {[%clk 0:00:14]} 25. Nb5 {[%clk 0:01:12]}  Qd7 {[%clk 0:00:14]} 26. Rc1 {[%clk 0:01:08]}  Rbc8 {[%clk 0:00:14]} 27. Rac3 {[%clk 0:01:05]}  a6 {[%clk 0:00:12]} 28. Rxc6 {[%clk 0:01:00]}  Rxc6 {[%clk 0:00:13]} 29. Rxc6 {[%clk 0:01:00]}  Qxc6 {[%clk 0:00:14]} 30. Nc3 {[%clk 0:01:00]}  Bg4 {[%clk 0:00:10]} 31. Bf1 {[%clk 0:00:59]}  Bf3 {[%clk 0:00:10]} 32. Qb2 {[%clk 0:00:58]}  h5 {[%clk 0:00:09]} 33. a5 {[%clk 0:00:54]}  Ng4 {[%clk 0:00:05]} 34. Qd2 {[%clk 0:00:34]}  Qe6 {[%clk 0:00:04]} 35. Na4 {[%clk 0:00:31]}  e3 {[%clk 0:00:04]} 36. fxe3 {[%clk 0:00:31]}  Nxe3 {[%clk 0:00:04]} 37. Nc5 {[%clk 0:00:31]}  Qe7 {[%clk 0:00:04]} 38. Bxa6 {[%clk 0:00:29]}  Ng4 {[%clk 0:00:03]} 39. Bf1 {[%clk 0:00:26]}  Qa7 {[%clk 0:00:02]} 40. a6 {[%clk 0:00:26]}  Qb6 {[%clk 0:00:03]} 41. Qd3 {[%clk 0:00:19]}  Nf6 {[%clk 0:00:02]} 42. Qxf3 {[%clk 0:00:18]}  Ne4 {[%clk 0:00:01]} 43. Nxe4 {[%clk 0:00:17]}  dxe4 {[%clk 0:00:02]} 44. Qxe4 {[%clk 0:00:18]}  Qxa6 {[%clk 0:00:01]} 45. Bxa6 {[%clk 0:00:17]} 1-0


[Site "https://www.chess.com"]

[Event "Titled Tuesday Blitz July 4 Late 2023"]
[White "Daggupati, Balaji"]
[Black "Koc, Przemyslaw"]
[WhiteFideId "2090759"]
[BlackFideId "1109081"]
[WhiteElo "2685"]
[BlackElo "2457"]
[Result "1-0"]
[Round "5"]
[TimeControl "180+2"]
[Date "2023.07.04"]
[WhiteClock "0:00:04"]
[BlackClock "0:00:00"]
[Board "69"]

1. e4 {[%clk 0:03:00]}  d6 {[%clk 0:03:00]} 2. d4 {[%clk 0:03:00]}  Nf6 {[%clk 0:03:00]} 3. Nc3 {[%clk 0:03:01]}  e5 {[%clk 0:03:01]} 4. dxe5 {[%clk 0:03:01]}  dxe5 {[%clk 0:03:01]} 5. Qxd8+ {[%clk 0:03:02]}  Kxd8 {[%clk 0:03:01]} 6. Bc4 {[%clk 0:03:03]}  Be6 {[%clk 0:03:02]} 7. Bxe6 {[%clk 0:03:02]}  fxe6 {[%clk 0:03:03]} 8. f3 {[%clk 0:02:53]}  Nc6 {[%clk 0:03:01]} 9. Be3 {[%clk 0:02:53]}  Bd6 {[%clk 0:03:01]} 10. O-O-O {[%clk 0:02:53]}  Ke7 {[%clk 0:03:01]} 11. Nge2 {[%clk 0:02:52]}  a6 {[%clk 0:03:01]} 12. Na4 {[%clk 0:02:51]}  Nd7 {[%clk 0:03:00]} 13. Kb1 {[%clk 0:02:47]}  b5 {[%clk 0:03:00]} 14. Nac3 {[%clk 0:02:47]}  Rhb8 {[%clk 0:02:54]} 15. Rd2 {[%clk 0:02:16]}  a5 {[%clk 0:02:47]} 16. h4 {[%clk 0:02:12]}  a4 {[%clk 0:02:46]} 17. h5 {[%clk 0:02:08]}  Na5 {[%clk 0:02:45]} 18. Bg5+ {[%clk 0:02:05]}  Ke8 {[%clk 0:02:44]} 19. h6 {[%clk 0:02:03]}  g6 {[%clk 0:02:45]} 20. b3 {[%clk 0:01:47]}  axb3 {[%clk 0:02:43]} 21. cxb3 {[%clk 0:01:48]}  Nc6 {[%clk 0:02:13]} 22. Rc1 {[%clk 0:01:45]}  Ra6 {[%clk 0:02:07]} 23. Nd1 {[%clk 0:01:37]}  Rba8 {[%clk 0:02:01]} 24. Nec3 {[%clk 0:01:34]}  Nd4 {[%clk 0:01:58]} 25. Be3 {[%clk 0:01:33]}  b4 {[%clk 0:01:39]} 26. Bxd4 {[%clk 0:01:31]}  exd4 {[%clk 0:01:39]} 27. Nb5 {[%clk 0:01:29]}  c5 {[%clk 0:01:39]} 28. Nxd6+ {[%clk 0:01:19]}  Rxd6 {[%clk 0:01:39]} 29. Nb2 {[%clk 0:01:14]}  e5 {[%clk 0:01:28]} 30. Nd3 {[%clk 0:01:09]}  Ra5 {[%clk 0:01:22]} 31. Rc4 {[%clk 0:00:58]}  g5 {[%clk 0:01:21]} 32. Rdc2 {[%clk 0:00:57]}  Rxh6 {[%clk 0:01:17]} 33. Nxc5 {[%clk 0:00:57]}  Nxc5 {[%clk 0:01:16]} 34. Rxc5 {[%clk 0:00:57]}  Rh1+ {[%clk 0:00:44]} 35. Kb2 {[%clk 0:00:57]}  Rxc5 {[%clk 0:00:44]} 36. Rxc5 {[%clk 0:00:58]}  h6 {[%clk 0:00:40]} 37. Rxe5+ {[%clk 0:00:57]}  Kf7 {[%clk 0:00:41]} 38. Rb5 {[%clk 0:00:43]}  Rh2 {[%clk 0:00:41]} 39. Rxb4 {[%clk 0:00:44]}  Rxg2+ {[%clk 0:00:41]} 40. Ka3 {[%clk 0:00:44]}  h5 {[%clk 0:00:42]} 41. Rxd4 {[%clk 0:00:44]}  h4 {[%clk 0:00:41]} 42. Rd7+ {[%clk 0:00:35]}  Ke6 {[%clk 0:00:38]} 43. Rh7 {[%clk 0:00:35]}  Rf2 {[%clk 0:00:38]} 44. b4 {[%clk 0:00:26]}  Rxf3+ {[%clk 0:00:37]} 45. Ka4 {[%clk 0:00:26]}  h3 {[%clk 0:00:38]} 46. b5 {[%clk 0:00:26]}  g4 {[%clk 0:00:36]} 47. b6 {[%clk 0:00:26]}  Rf8 {[%clk 0:00:28]} 48. Kb5 {[%clk 0:00:24]}  Rg8 {[%clk 0:00:24]} 49. b7 {[%clk 0:00:21]}  g3 {[%clk 0:00:24]} 50. Rg7 {[%clk 0:00:07]}  Rxg7 {[%clk 0:00:21]} 51. b8=Q {[%clk 0:00:08]}  g2 {[%clk 0:00:20]} 52. Qe8+ {[%clk 0:00:07]}  Kf6 {[%clk 0:00:19]} 53. e5+ {[%clk 0:00:07]}  Kf5 {[%clk 0:00:20]} 54. Qf8+ {[%clk 0:00:07]}  Kg6 {[%clk 0:00:19]} 55. Qf6+ {[%clk 0:00:07]}  Kh7 {[%clk 0:00:19]} 56. Qh4+ {[%clk 0:00:08]}  Kg8 {[%clk 0:00:20]} 57. Qc4+ {[%clk 0:00:08]}  Kh8 {[%clk 0:00:18]} 58. Qc8+ {[%clk 0:00:08]}  Kh7 {[%clk 0:00:14]} 59. Qxh3+ {[%clk 0:00:08]}  Kg8 {[%clk 0:00:14]} 60. Qe6+ {[%clk 0:00:08]}  Kh7 {[%clk 0:00:14]} 61. Qf5+ {[%clk 0:00:08]}  Kg8 {[%clk 0:00:14]} 62. Qc8+ {[%clk 0:00:08]}  Kh7 {[%clk 0:00:14]} 63. Qc2+ {[%clk 0:00:09]}  Kg8 {[%clk 0:00:15]} 64. Qb3+ {[%clk 0:00:09]}  Kh7 {[%clk 0:00:14]} 65. Qb1+ {[%clk 0:00:06]}  Kh6 {[%clk 0:00:10]} 66. Qg1 {[%clk 0:00:07]}  Rg5 {[%clk 0:00:08]} 67. Kc4 {[%clk 0:00:06]}  Kg6 {[%clk 0:00:02]} 68. Kd5 {[%clk 0:00:05]}  Kf5 {[%clk 0:00:00]} 69. e6 {[%clk 0:00:04]} 1-0


[Site "https://www.chess.com"]

[Event "Titled Tuesday Blitz July 4 Late 2023"]
[White "Shuvalova, Polina"]
[Black "Kazmin_Semyon"]
[WhiteFideId "24171760"]
[WhiteElo "2682"]
[BlackElo "2465"]
[Result "1-0"]
[Round "5"]
[TimeControl "180+2"]
[Date "2023.07.04"]
[WhiteClock "0:00:22"]
[BlackClock "0:00:00"]
[Board "70"]

1. f4 {[%clk 0:03:00]}  e5 {[%clk 0:00:18]} 2. fxe5 {[%clk 0:02:56]}  d6 {[%clk 0:00:19]} 3. Nf3 {[%clk 0:02:52]}  dxe5 {[%clk 0:00:15]} 4. e4 {[%clk 0:02:52]}  Nc6 {[%clk 0:00:15]} 5. Bc4 {[%clk 0:02:52]}  Bc5 {[%clk 0:00:15]} 6. d3 {[%clk 0:02:50]}  Bg4 {[%clk 0:00:13]} 7. h3 {[%clk 0:02:45]}  Bxf3 {[%clk 0:00:13]} 8. Qxf3 {[%clk 0:02:44]}  Qh4+ {[%clk 0:00:14]} 9. g3 {[%clk 0:02:41]}  Qf6 {[%clk 0:00:15]} 10. Qxf6 {[%clk 0:02:27]}  Nxf6 {[%clk 0:00:16]} 11. Bb5 {[%clk 0:02:24]}  Kd7 {[%clk 0:00:15]} 12. g4 {[%clk 0:02:15]}  a6 {[%clk 0:00:15]} 13. Bxc6+ {[%clk 0:02:08]}  Kxc6 {[%clk 0:00:16]} 14. Bg5 {[%clk 0:02:06]}  Nd7 {[%clk 0:00:16]} 15. Nc3 {[%clk 0:02:06]}  f6 {[%clk 0:00:16]} 16. Bd2 {[%clk 0:02:06]}  Bd4 {[%clk 0:00:16]} 17. Ke2 {[%clk 0:02:05]}  b5 {[%clk 0:00:17]} 18. Be3 {[%clk 0:02:00]}  Bxe3 {[%clk 0:00:17]} 19. Kxe3 {[%clk 0:02:00]}  Kd6 {[%clk 0:00:18]} 20. a4 {[%clk 0:01:57]}  b4 {[%clk 0:00:16]} 21. Ne2 {[%clk 0:01:53]}  a5 {[%clk 0:00:17]} 22. Ng3 {[%clk 0:01:52]}  g6 {[%clk 0:00:18]} 23. Raf1 {[%clk 0:01:51]}  Ra6 {[%clk 0:00:16]} 24. b3 {[%clk 0:01:48]}  Rc6 {[%clk 0:00:16]} 25. Kd2 {[%clk 0:01:48]}  Ke7 {[%clk 0:00:15]} 26. Rf2 {[%clk 0:01:48]}  Nc5 {[%clk 0:00:12]} 27. Nf1 {[%clk 0:01:47]}  Rd8 {[%clk 0:00:09]} 28. Re2 {[%clk 0:01:40]}  Rcd6 {[%clk 0:00:05]} 29. Rg1 {[%clk 0:01:31]}  c6 {[%clk 0:00:03]} 30. Rg3 {[%clk 0:01:27]}  Ne6 {[%clk 0:00:03]} 31. Rf2 {[%clk 0:01:20]}  Nc5 {[%clk 0:00:02]} 32. Ke2 {[%clk 0:01:16]}  R8d7 {[%clk 0:00:03]} 33. h4 {[%clk 0:01:15]}  Ne6 {[%clk 0:00:04]} 34. g5 {[%clk 0:01:14]}  fxg5 {[%clk 0:00:04]} 35. hxg5 {[%clk 0:01:15]}  Nf4+ {[%clk 0:00:04]} 36. Kd2 {[%clk 0:01:15]}  Ke6 {[%clk 0:00:04]} 37. Rh2 {[%clk 0:01:14]}  Rf7 {[%clk 0:00:04]} 38. Ne3 {[%clk 0:01:13]}  Nh5 {[%clk 0:00:04]} 39. Rgg2 {[%clk 0:01:11]}  Rd8 {[%clk 0:00:05]} 40. Rf2 {[%clk 0:01:08]}  Re7 {[%clk 0:00:01]} 41. Nc4 {[%clk 0:01:07]}  Nf4 {[%clk 0:00:01]} 42. Nxa5 {[%clk 0:01:05]}  Rf7 {[%clk 0:00:01]} 43. Nc4 {[%clk 0:01:04]}  Rdf8 {[%clk 0:00:01]} 44. Rf3 {[%clk 0:01:00]}  Nh5 {[%clk 0:00:01]} 45. Rxf7 {[%clk 0:00:59]}  Rxf7 {[%clk 0:00:02]} 46. Rh1 {[%clk 0:00:53]}  Ng3 {[%clk 0:00:03]} 47. Ra1 {[%clk 0:00:50]}  Rf2+ {[%clk 0:00:03]} 48. Kc1 {[%clk 0:00:50]}  Ne2+ {[%clk 0:00:03]} 49. Kb2 {[%clk 0:00:50]}  Nd4 {[%clk 0:00:03]} 50. Rc1 {[%clk 0:00:48]}  Ne2 {[%clk 0:00:04]} 51. Rd1 {[%clk 0:00:46]}  Nd4 {[%clk 0:00:02]} 52. Rd2 {[%clk 0:00:45]}  Rf1 {[%clk 0:00:03]} 53. c3 {[%clk 0:00:24]}  bxc3+ {[%clk 0:00:02]} 54. Kxc3 {[%clk 0:00:25]}  Nf3 {[%clk 0:00:02]} 55. Ra2 {[%clk 0:00:23]}  Nxg5 {[%clk 0:00:01]} 56. Kb4 {[%clk 0:00:22]}  Rf7 {[%clk 0:00:02]} 57. a5 {[%clk 0:00:22]}  Ra7 {[%clk 0:00:02]} 58. a6 {[%clk 0:00:22]}  Nf7 {[%clk 0:00:03]} 59. Kc5 {[%clk 0:00:23]}  Nd6 {[%clk 0:00:00]} 60. Nxd6 {[%clk 0:00:22]} 1-0


[Site "https://www.chess.com"]

[Event "Titled Tuesday Blitz July 4 Late 2023"]
[White "Remolar Gallen, Jose"]
[Black "benny_aizenberg"]
[WhiteFideId "2215187"]
[WhiteElo "2455"]
[BlackElo "2672"]
[Result "1-0"]
[Round "5"]
[TimeControl "180+2"]
[Date "2023.07.04"]
[WhiteClock "0:00:35"]
[BlackClock "0:00:00"]
[Board "71"]

1. d4 {[%clk 0:03:00]}  Nf6 {[%clk 0:02:58]} 2. Nf3 {[%clk 0:03:00]}  e6 {[%clk 0:02:57]} 3. e3 {[%clk 0:03:00]}  c5 {[%clk 0:02:55]} 4. Bd3 {[%clk 0:03:00]}  Nc6 {[%clk 0:02:54]} 5. O-O {[%clk 0:02:59]}  b6 {[%clk 0:02:53]} 6. b3 {[%clk 0:03:00]}  Bb7 {[%clk 0:02:49]} 7. Bb2 {[%clk 0:03:00]}  Qc7 {[%clk 0:02:42]} 8. a3 {[%clk 0:02:56]}  Bd6 {[%clk 0:02:35]} 9. Nbd2 {[%clk 0:02:50]}  O-O-O {[%clk 0:02:20]} 10. Qe2 {[%clk 0:02:35]}  g5 {[%clk 0:01:58]} 11. Nc4 {[%clk 0:02:31]}  g4 {[%clk 0:01:53]} 12. Nfe5 {[%clk 0:02:23]}  Bxe5 {[%clk 0:01:30]} 13. dxe5 {[%clk 0:02:21]}  Ne8 {[%clk 0:01:02]} 14. Qxg4 {[%clk 0:02:08]}  b5 {[%clk 0:00:57]} 15. Nd6+ {[%clk 0:02:06]}  Nxd6 {[%clk 0:00:55]} 16. exd6 {[%clk 0:02:07]}  Qxd6 {[%clk 0:00:55]} 17. Bxh8 {[%clk 0:02:05]}  Rxh8 {[%clk 0:00:56]} 18. Rad1 {[%clk 0:01:45]}  Ne5 {[%clk 0:00:50]} 19. Qg7 {[%clk 0:01:45]}  Rd8 {[%clk 0:00:23]} 20. Be4 {[%clk 0:01:35]}  Qc7 {[%clk 0:00:23]} 21. Bxb7+ {[%clk 0:01:35]}  Kxb7 {[%clk 0:00:24]} 22. f4 {[%clk 0:01:25]}  Nc6 {[%clk 0:00:20]} 23. Qxf7 {[%clk 0:01:23]}  h6 {[%clk 0:00:18]} 24. Rd2 {[%clk 0:01:21]}  Nb8 {[%clk 0:00:13]} 25. Rfd1 {[%clk 0:01:21]}  Kc6 {[%clk 0:00:13]} 26. f5 {[%clk 0:01:13]}  exf5 {[%clk 0:00:11]} 27. Qxf5 {[%clk 0:01:09]}  d6 {[%clk 0:00:10]} 28. a4 {[%clk 0:01:06]}  bxa4 {[%clk 0:00:10]} 29. Qd5+ {[%clk 0:01:02]}  Kb6 {[%clk 0:00:09]} 30. bxa4 {[%clk 0:01:03]}  Nc6 {[%clk 0:00:08]} 31. Rb1+ {[%clk 0:01:02]}  Nb4 {[%clk 0:00:08]} 32. Qc4 {[%clk 0:01:00]}  a6 {[%clk 0:00:03]} 33. c3 {[%clk 0:00:58]}  d5 {[%clk 0:00:04]} 34. Qf4 {[%clk 0:00:43]}  Qe7 {[%clk 0:00:02]} 35. cxb4 {[%clk 0:00:41]}  c4 {[%clk 0:00:03]} 36. a5+ {[%clk 0:00:38]}  Kb5 {[%clk 0:00:02]} 37. Qd4 {[%clk 0:00:37]}  c3 {[%clk 0:00:03]} 38. Qxc3 {[%clk 0:00:35]}  d4 {[%clk 0:00:01]} 39. Rxd4 {[%clk 0:00:34]}  Rxd4 {[%clk 0:00:00]} 40. Qxd4 {[%clk 0:00:35]} 1-0


[Site "https://www.chess.com"]